bitfinex/quotes_ETHUSD_20220106
["timestamp","ask_amount","ask_price","bid_price","bid_amount"]
[1641428539487,1.38388782,3521.5,3521.0,0.00909478]
[1641428539887,45.91263254,3521.1,3521.0,0.00909478]
[1641428540095,63.72763254,3521.1,3521.0,0.00909478]
[1641428540392,62.79318153,3521.1,3521.0,0.00909478]
[1641428540635,63.79318153,3521.1,3521.0,0.00909478]
[1641428540836,0.01263254,3521.1,3521.0,0.00909478]
[1641428541041,3.45981692,3521.5,3520.3,0.06554899]
[1641428541042,1.03888782,3521.5,3520.3,0.06554899]
[1641428541240,1.03888782,3521.5,3520.6,0.63915]
[1641428541443,4.19004454,3521.1,3520.6,0.63915]
[1641428541640,4.19004454,3521.1,3520.7,0.01080005]
[1641428542041,1.32563565,3520.8,3520.7,0.01080005]
[1641428542644,1.42034,3522.4,3520.8,0.7101689]
[1641428542843,3.8817,3522.3,3520.8,0.7101689]
[1641428543043,3.8817,3522.3,3520.9,0.3096632]
[1641428543443,3.8817,3522.3,3521.0,0.00909478]
[1641428543642,1.42332997,3521.1,3521.0,0.00909478]
[1641428544688,3.8817,3522.3,3521.0,0.00909478]
[1641428545088,3.8817,3522.3,3521.0,0.04576437]
[1641428545391,6.17,3522.5,3521.1,0.68840754]
[1641428545587,6.17,3522.5,3521.2,2.560707]
[1641428545787,1.07702646,3522.1,3521.2,2.56866493]
[1641428545988,1.07702646,3522.1,3521.8,0.3]
[1641428546387,1.07702646,3522.1,3521.9,0.00397897]
[1641428547291,1.07702646,3522.1,3521.2,0.00795793]
[1641428547586,0.01220683,3521.8,3520.2,0.01364217]
[1641428548034,0.01220683,3521.8,3520.3,0.7102038]
[1641428548232,1.11149902,3521.2,3520.4,0.63916]
[1641428548432,1.11149902,3521.2,3520.4,0.65166532]
[1641428548634,1.11149902,3521.2,3520.5,0.0119369]
[1641428549234,1.11149902,3521.2,3520.5,0.3119369]
[1641428549636,1.11149902,3521.2,3520.6,0.01136847]
[1641428550939,1.11149902,3521.2,3520.6,0.31136847]
[1641428551138,0.01220683,3521.8,3520.6,0.61136847]
[1641428551338,3.2871,3525.9,3520.7,2.24978536]
[1641428551339,35.97073126,3522.6,3520.7,2.24978536]
[1641428551537,1.15883047,3522.3,3520.9,1.40445771]
[1641428551783,6.17,3522.5,3520.9,1.40445771]
[1641428551980,6.17,3522.5,3521.0,0.00909478]
[1641428552182,6.17,3522.5,3521.0,2.21662456]
[1641428552481,6.17,3522.5,3521.9,0.7098958]
[1641428552482,7.56859655,3522.5,3521.9,0.7098958]
[1641428552883,7.56859655,3522.5,3522.0,0.00341054]
[1641428554087,7.56859655,3522.5,3521.8,0.00454739]
[1641428555086,0.01215413,3521.9,3520.7,5.52080914]
[1641428555287,0.01215413,3521.9,3520.9,0.00511581]
[1641428555742,1.02734562,3521.1,3520.9,0.00511581]
[1641428556143,1.02734562,3521.1,3520.7,0.00625266]
[1641428557142,1.0980979,3521.8,3520.7,0.00625266]
[1641428558048,0.01215413,3521.9,3520.7,0.00625266]
[1641428558250,1.2420143,3521.7,3520.7,0.00625266]
[1641428558645,1.2420143,3521.7,3520.8,0.6391]
[1641428558844,1.2420143,3521.7,3520.7,0.00625266]
[1641428559046,1.2420143,3521.7,3520.7,0.71636786]
[1641428559482,1.2420143,3521.7,3520.8,0.30568424]
[1641428559684,1.2420143,3521.7,3520.9,1.31411462]
[1641428559884,1.2420143,3521.7,3520.8,2.43616043]
[1641428560085,1.2420143,3521.7,3521.0,0.00454739]
[1641428560490,0.00341054,3522.4,3521.2,0.3]
[1641428560689,0.00341054,3522.4,3521.5,0.63897]
[1641428560898,0.00284212,3522.3,3521.5,0.63897]
[1641428561091,0.00284212,3522.3,3521.6,0.00113685]
[1641428561292,0.00227369,3522.2,3521.6,0.00113685]
[1641428561690,1.17506366,3521.9,3521.3,0.00284212]
[1641428561892,1.17506366,3521.9,3521.5,0.63896]
[1641428562092,0.00170527,3522.1,3521.5,0.93896]
[1641428562289,0.00170527,3522.1,3521.7,1.419784]
[1641428562489,0.00113685,3522.0,3521.7,1.719784]
[1641428562692,0.00113685,3522.0,3521.8,0.3]
[1641428563158,0.00113685,3522.0,3521.8,0.33188049]
[1641428563357,0.00113685,3522.0,3521.8,2.46095199]
[1641428564260,0.00113685,3522.0,3521.8,2.16095199]
[1641428564459,0.00113685,3522.0,3521.8,2.12996339]
[1641428565463,0.00113685,3522.0,3521.8,2.42996339]
[1641428565661,0.00113685,3522.0,3521.8,2.72996339]
[1641428567188,0.00113685,3522.0,3521.8,0.60089189]
[1641428567591,0.00113685,3522.0,3521.8,0.30089189]
[1641428570640,0.00113685,3522.0,3521.8,0.00089189]
[1641428571635,46.85078819,3521.9,3521.8,0.00089189]
[1641428571838,1.00078819,3521.9,3521.8,0.00089189]
[1641428572942,1.00078819,3521.9,3521.6,0.00113685]
[1641428573344,1.00078819,3521.9,3520.4,0.00795793]
[1641428573544,1.71102819,3521.9,3520.4,0.00795793]
[1641428573747,1.00078819,3521.9,3521.7,0.00080622]
[1641428575992,62.37,3521.8,3521.7,0.00080622]
[1641428576693,16.47,3521.8,3521.7,0.00080622]
[1641428577091,34.24595169,3521.8,3521.7,0.00080622]
[1641428578138,4.12595169,3521.8,3521.7,0.00080622]
[1641428578341,2.42134529,3521.9,3521.7,0.00080622]
[1641428578741,1.71103819,3521.9,3521.7,0.00080622]
[1641428578945,1.00078819,3521.9,3521.7,0.00080622]
[1641428579942,2.27640974,3521.9,3521.7,0.00080622]
[1641428582388,2.98663234,3521.9,3521.7,0.00080622]
[1641428583893,19.45663234,3521.9,3521.7,0.00080622]
[1641428584893,2.98663234,3521.9,3521.7,0.00080622]
[1641428585741,62.38282021,3521.8,3521.7,6.22e-06]
[1641428585945,62.38282021,3521.8,3520.3,0.00852635]
[1641428585946,64.32782021,3521.8,3520.3,0.00852635]
[1641428586147,0.01268676,3521.0,3520.3,0.00852635]
[1641428586549,1.68700598,3520.9,3519.7,0.01193689]
[1641428586753,1.68700598,3520.9,3519.6,0.01250532]
[1641428586754,1.35597249,3520.2,3519.6,0.01250532]
[1641428586949,1.12216793,3520.0,3519.6,0.01250532]
[1641428587149,0.345,3520.9,3519.6,0.01250532]
[1641428587753,0.7105,3520.4,3519.6,0.01250532]
[1641428587953,4.71199548,3521.4,3519.9,1.41537878]
[1641428588151,1.10817836,3521.0,3519.9,1.41537878]
[1641428588351,1.10817836,3521.0,3520.0,0.01023162]
[1641428588551,3.6256,3521.4,3520.0,2.01023162]
[1641428588752,4.12595169,3521.7,3520.6,0.71013]
[1641428588951,4.12595169,3521.7,3520.1,0.07521219]
[1641428589153,4.12595169,3521.7,3520.7,0.00625266]
[1641428589391,0.01209629,3521.5,3520.2,0.00909478]
[1641428589790,0.01209629,3521.5,3519.9,0.01080005]
[1641428589990,1.04011366,3520.3,3519.9,0.01080005]
[1641428590396,1.04011366,3520.3,3519.7,0.01193689]
[1641428590596,1.04011366,3520.3,3519.6,0.01250532]
[1641428594141,1.07910346,3519.7,3519.6,0.01250532]
[1641428595143,1.07910346,3519.7,3518.1,0.007]
[1641428595144,0.46097232,3519.5,3518.1,0.007]
[1641428595545,1.11991753,3518.4,3518.2,0.00795793]
[1641428595747,1.11991753,3518.4,3517.7,0.04090522]
[1641428595945,0.72318681,3518.3,3517.7,0.04090522]
[1641428596145,0.72318681,3518.3,3517.8,0.00227369]
[1641428596647,1.20420385,3518.3,3517.8,0.00227369]
[1641428597094,1.11991753,3518.4,3517.8,0.00227369]
[1641428597694,2.4778,3519.0,3517.8,0.00227369]
[1641428597695,4.27629997,3519.3,3517.8,0.00227369]
[1641428597894,3.77629997,3519.3,3517.8,0.00227369]
[1641428598095,0.00170527,3518.5,3518.0,1.072415]
[1641428598394,3.77629997,3519.3,3518.0,1.072415]
[1641428598395,0.00113685,3518.4,3518.0,1.072415]
[1641428598596,0.00113685,3518.4,3518.0,0.3]
[1641428598794,1.08056857,3518.9,3518.0,0.3]
[1641428599194,0.00341054,3518.8,3518.0,0.3]
[1641428599598,0.00284212,3518.7,3518.0,0.3]
[1641428599995,0.0022737,3518.6,3518.0,0.3]
[1641428600296,0.00341054,3518.8,3518.0,0.3]
[1641428600745,0.00284212,3518.7,3518.0,0.3]
[1641428601143,0.0022737,3518.6,3518.0,0.3]
[1641428601544,0.00341054,3518.8,3518.0,0.3]
[1641428601743,0.00341054,3518.8,3517.8,0.64189369]
[1641428601945,0.00284212,3518.7,3517.9,2.18752057]
[1641428602158,0.00284212,3518.7,3518.2,0.63948]
[1641428602345,0.0022737,3518.6,3518.3,2.51824953]
[1641428602548,0.0022737,3518.6,3518.4,0.345]
[1641428602748,1.1708,3520.7,3518.4,0.345]
[1641428602749,0.01364217,3520.6,3518.4,0.345]
[1641428602949,1.31106094,3520.2,3519.3,1.37041522]
[1641428603149,1.31106094,3520.2,3519.2,0.63938]
[1641428603349,0.01080005,3520.1,3518.9,1.27876]
[1641428603550,0.01080005,3520.1,3518.7,0.6]
[1641428603851,0.01023163,3520.0,3518.5,6.41054986]
[1641428604053,0.01023163,3520.0,3518.6,0.3]
[1641428604299,1.4398214,3519.7,3518.6,0.3]
[1641428604492,1.25741173,3519.2,3518.5,3.6496]
[1641428604696,1.25741173,3519.2,3518.2,1.5]
[1641428604893,0.00511582,3519.1,3518.2,1.5]
[1641428605093,0.00511582,3519.1,3518.3,0.00112697]
[1641428605294,0.00454739,3519.0,3518.3,0.00112697]
[1641428605793,1.25741173,3519.2,3518.3,0.00112697]
[1641428605794,0.00397897,3518.9,3518.3,0.00112697]
[1641428606093,0.00341054,3518.8,3518.3,0.00112697]
[1641428606593,0.00284212,3518.7,3518.3,0.00112697]
[1641428606994,0.0022737,3518.6,3518.3,0.00112697]
[1641428607395,0.00511582,3519.1,3518.3,0.00112697]
[1641428607802,0.00454739,3519.0,3518.3,0.00112697]
[1641428608352,0.00397897,3518.9,3518.3,0.00112697]
[1641428608749,0.00341054,3518.8,3518.3,0.00112697]
[1641428609149,0.00284212,3518.7,3518.3,0.00112697]
[1641428609552,0.0022737,3518.6,3518.3,0.00112697]
[1641428609954,0.00511582,3519.1,3518.3,0.00112697]
[1641428610153,1.29293453,3518.6,3518.3,0.00112697]
[1641428612388,0.00454739,3519.0,3518.3,0.00112697]
[1641428612788,0.00397897,3518.9,3518.3,0.00112697]
[1641428613188,0.00341054,3518.8,3518.3,0.00112697]
[1641428613589,0.00284212,3518.7,3518.3,0.00112697]
[1641428613989,0.0022737,3518.6,3518.3,0.00112697]
[1641428614389,1.16044301,3519.5,3518.3,0.00112697]
[1641428614589,18.34118431,3519.5,3518.3,0.00112697]
[1641428614789,0.00682109,3519.4,3518.3,0.00112697]
[1641428615189,1.30608757,3518.7,3518.3,0.00112697]
[1641428615642,0.0022737,3518.6,3518.3,0.00112697]
[1641428617546,0.0022737,3518.6,3518.3,0.71171697]
[1641428617744,0.0022737,3518.6,3518.3,4.61171697]
[1641428617947,0.0022737,3518.6,3518.3,4.91171697]
[1641428618846,0.0022737,3518.6,3518.3,5.21171697]
[1641428619049,0.0022737,3518.6,3518.3,4.91171697]
[1641428619690,0.0022737,3518.6,3518.3,4.20112697]
[1641428620093,0.0022737,3518.6,3518.3,3.90112697]
[1641428620489,0.0022737,3518.6,3518.3,0.00112697]
[1641428621695,1.37662922,3518.6,3518.3,0.00112697]
[1641428622699,1.37662922,3518.6,3517.7,1.44316903]
[1641428623046,0.00284211,3518.5,3517.8,0.00113685]
[1641428623446,0.00227369,3518.4,3517.8,0.00113685]
[1641428623848,0.00170527,3518.3,3517.8,0.00113685]
[1641428624247,0.00113684,3518.2,3517.8,0.00113685]
[1641428624748,1.17115185,3519.0,3517.8,0.00113685]
[1641428625148,0.00511581,3518.9,3517.8,0.00113685]
[1641428625548,0.00454738,3518.8,3517.8,0.00113685]
[1641428625951,0.00397896,3518.7,3517.8,0.00113685]
[1641428626151,0.00397896,3518.7,3517.8,1.46068264]
[1641428626352,0.00341054,3518.6,3517.9,0.00105559]
[1641428626795,0.00284211,3518.5,3517.9,0.00105559]
[1641428627197,0.00227369,3518.4,3517.9,0.00105559]
[1641428627600,0.00170527,3518.3,3517.9,0.00105559]
[1641428628003,0.00113684,3518.2,3517.9,0.00105559]
[1641428628400,0.00284211,3518.5,3517.9,0.00105559]
[1641428628701,0.00227369,3518.4,3517.9,0.00105559]
[1641428629000,0.00170527,3518.3,3517.9,0.00105559]
[1641428629400,0.00113684,3518.2,3517.9,0.00105559]
[1641428629801,0.00284211,3518.5,3517.9,0.00105559]
[1641428630205,0.00227369,3518.4,3517.9,0.00105559]
[1641428630642,0.00170527,3518.3,3517.9,0.00105559]
[1641428631044,0.00113684,3518.2,3517.9,0.00105559]
[1641428631444,0.00284211,3518.5,3517.9,0.00105559]
[1641428631843,0.00227369,3518.4,3517.9,0.00105559]
[1641428632242,0.00170527,3518.3,3517.9,0.00105559]
[1641428632644,0.00113684,3518.2,3517.9,0.00105559]
[1641428633044,0.00284211,3518.5,3517.9,0.00105559]
[1641428633348,0.00227369,3518.4,3517.9,0.00105559]
[1641428633744,0.00170527,3518.3,3517.9,0.00105559]
[1641428633944,1.48316674,3518.0,3517.9,0.00105559]
[1641428634593,2.81141104,3518.0,3517.9,0.00105559]
[1641428634995,1.3282443,3518.0,3517.9,0.00105559]
[1641428636399,42.4282443,3518.0,3517.9,0.00105559]
[1641428636597,18.7982443,3518.0,3517.9,0.00105559]
[1641428637500,20.31775064,3518.0,3517.9,0.00105559]
[1641428638543,19.31775064,3518.0,3517.9,0.00105559]
[1641428639542,20.31775064,3518.0,3517.9,0.00105559]
[1641428639743,1.3282443,3518.0,3517.9,0.00105559]
[1641428639952,0.00113684,3518.2,3517.9,0.00105559]
[1641428645644,1.21556012,3518.1,3517.9,0.00105559]
[1641428647252,0.00113684,3518.2,3517.9,0.00105559]
[1641428649796,0.00113684,3518.2,3517.9,1.27118801]
[1641428650999,0.00113684,3518.2,3517.9,0.00105559]
[1641428651797,0.00113684,3518.2,3517.9,1.01179559]
[1641428651999,0.00113684,3518.2,3518.0,2.59313893]
[1641428652199,0.00113684,3518.2,3518.0,0.3]
[1641428652401,0.00113684,3518.2,3518.1,95.03568329]
[1641428652599,3.684e-05,3518.2,3518.1,95.33568329]
[1641428653046,3.684e-05,3518.2,3518.1,96.33568329]
[1641428653251,3.684e-05,3518.2,3518.1,94.25]
[1641428653459,3.684e-05,3518.2,3518.1,0.3]
[1641428653652,3.684e-05,3518.2,3518.1,83.05]
[1641428655153,3.684e-05,3518.2,3518.1,82.75]
[1641428656354,3.684e-05,3518.2,3518.1,83.35]
[1641428656558,1.25266722,3520.1,3518.1,84.38907159]
[1641428656812,3.8125,3520.3,3519.1,0.71048]
[1641428657016,0.01023163,3520.0,3519.4,1.066426]
[1641428657214,0.01136847,3520.2,3519.4,1.066426]
[1641428657412,4.01846864,3521.3,3519.4,1.066426]
[1641428657413,0.0096632,3519.9,3519.5,0.345]
[1641428657615,4.01846864,3521.3,3519.5,0.645]
[1641428657616,0.01080005,3520.1,3519.5,0.645]
[1641428657816,4.01846864,3521.3,3520.7,0.63912]
[1641428658016,4.01846864,3521.3,3520.7,1.31013]
[1641428658216,0.00568423,3521.1,3520.7,1.31013]
[1641428658618,0.00511581,3521.0,3520.7,1.31013]
[1641428659018,0.00454739,3520.9,3520.7,1.31013]
[1641428659220,0.00454739,3520.9,3520.7,1.94923]
[1641428659417,0.00397896,3520.8,3520.7,1.94923]
[1641428661462,0.00397896,3520.8,3520.7,95.79923]
[1641428661463,7.896e-05,3520.8,3520.7,95.79923]
[1641428661665,7.896e-05,3520.8,3520.7,98.26739995]
[1641428661867,6.17,3522.3,3520.8,3.2]
[1641428662064,6.17,3522.3,3521.5,1.3488001]
[1641428662263,0.00795793,3522.2,3521.5,1.5]
[1641428662466,5.99635793,3522.3,3521.6,62.35]
[1641428662667,5.99635793,3522.3,3521.7,1.4196138]
[1641428662867,2.42535793,3522.3,3521.8,0.345]
[1641428663066,4.01846864,3522.9,3521.8,0.64727369]
[1641428663366,4.01846864,3522.9,3521.9,0.00170527]
[1641428663367,0.00341054,3522.8,3521.9,0.00170527]
[1641428663767,0.00284212,3522.7,3521.7,0.00284211]
[1641428664169,6.17,3522.5,3521.7,0.00284211]
[1641428664397,1.37622167,3522.3,3521.7,0.00284211]
[1641428664996,1.37622167,3522.3,3521.8,1.34879]
[1641428665400,0.00113685,3522.4,3521.9,0.00170527]
[1641428666000,0.00113685,3522.4,3522.0,0.63883]
[1641428666300,0.00113685,3522.4,3521.9,0.00170527]
[1641428666800,1.42170794,3522.3,3521.8,0.00227369]
[1641428667601,1.42170794,3522.3,3521.9,0.63889]
[1641428668046,1.42170794,3522.3,3522.0,0.00113684]
[1641428669852,1.42170794,3522.3,3521.8,0.00227369]
[1641428670256,1.17139916,3522.1,3521.6,0.00341054]
[1641428670854,1.17139916,3522.1,3520.8,0.00795793]
[1641428671054,1.17139916,3522.1,3520.4,0.01023162]
[1641428671254,0.5,3522.0,3520.4,0.01023162]
[1641428671456,1.41229741,3520.6,3520.4,0.01023162]
[1641428671654,0.7103361,3521.6,3520.4,0.01023162]
[1641428672098,0.7103361,3521.6,3520.1,0.01193689]
[1641428672494,1.42064,3522.0,3520.1,0.01193689]
[1641428672699,0.71031,3522.0,3520.1,0.01193689]
[1641428672900,0.7102727,3521.9,3520.1,0.01193689]
[1641428673100,2.1309433,3522.0,3520.1,0.01193689]
[1641428673299,1.16677783,3520.8,3520.1,0.01193689]
[1641428676644,0.7102479,3521.7,3520.1,0.01193689]
[1641428676848,4.01846864,3522.3,3520.1,2.63112871]
[1641428677045,4.01846864,3522.3,3520.2,1.645]
[1641428677245,4.01846864,3522.3,3520.3,2.24607941]
[1641428677448,4.01846864,3522.3,3520.9,1.51537555]
[1641428677449,5.10762238,3522.3,3520.9,1.51537555]
[1641428677651,1.30169036,3521.7,3520.5,2.316088]
[1641428677852,1.30169036,3521.7,3521.0,0.00682108]
[1641428678050,1.30169036,3521.7,3520.8,0.71004]
[1641428678253,9.036e-05,3521.7,3521.0,0.00682108]
[1641428678453,0.01342377,3522.4,3521.0,2.18711256]
[1641428678454,0.00113685,3522.4,3521.0,2.18711256]
[1641428678653,0.00113685,3522.4,3521.0,1.00682108]
[1641428678852,0.00113685,3522.4,3521.3,0.70997]
[1641428679053,0.00113685,3522.4,3521.4,0.3]
[1641428679295,1.17303374,3522.0,3521.4,0.30454739]
[1641428679499,1.17303374,3522.0,3521.5,0.00397896]
[1641428679900,1.17303374,3522.0,3521.0,0.00682108]
[1641428681204,1.17303374,3522.0,3520.9,0.0073895]
[1641428681405,1.27163473,3521.1,3520.9,0.0073895]
[1641428682607,45.91235704,3521.0,3520.9,0.0073895]
[1641428682809,45.91235704,3521.0,3519.7,0.01421058]
[1641428682810,68.06265704,3521.0,3519.7,0.01421058]
[1641428683044,68.06265704,3521.0,3519.4,1.5]
[1641428683045,1.36872576,3519.6,3519.5,0.01534743]
[1641428683646,1.36872576,3519.6,3518.7,0.01989482]
[1641428684247,1.39077591,3519.5,3518.7,0.01989482]
[1641428684447,1.25459472,3518.8,3518.1,0.02330536]
[1641428685950,3.9141,3520.3,3518.1,0.02330536]
[1641428686151,3.9141,3520.3,3518.5,1.27888]
[1641428686550,3.9141,3520.3,3518.6,0.62046324]
[1641428686791,1.37824852,3519.4,3519.2,0.6394]
[1641428686997,1.37824852,3519.4,3518.7,0.01989482]
[1641428687291,1.37824852,3519.4,3518.0,3.41827]
[1641428687292,1.37824852,3519.4,3518.6,1.27894]
[1641428687698,1.37824852,3519.4,3518.7,0.01989482]
[1641428688004,1.37824852,3519.4,3518.9,0.63949]
[1641428688498,1.37824852,3519.4,3519.0,0.01818955]
[1641428689101,1.37824852,3519.4,3518.8,0.0193264]
[1641428689302,1.37824852,3519.4,3518.7,0.01989482]
[1641428689501,1.37824852,3519.4,3519.1,0.00094107]
[1641428689900,1.37824852,3519.4,3519.2,0.0170527]
[1641428693649,0.0169473,3519.2,3519.1,0.00094107]
[1641428695700,0.5,3519.1,3517.5,68.2296]
[1641428695897,19.53806768,3519.0,3517.5,68.1796]
[1641428696099,1.4218798,3518.6,3517.6,0.00909478]
[1641428697099,5.1707887,3519.4,3517.6,0.00909478]
[1641428697500,5.1707887,3519.4,3517.6,0.30909478]
[1641428697902,3.7492,3519.4,3517.7,0.00852635]
[1641428698145,0.35780231,3519.5,3517.7,0.00852635]
[1641428698146,0.01280231,3519.5,3517.9,1.51902546]
[1641428698349,0.01280231,3519.5,3518.0,0.3]
[1641428698547,0.00113685,3519.4,3518.0,0.30682108]
[1641428698748,0.00113685,3519.4,3518.1,0.00625266]
[1641428699048,0.5,3519.8,3518.1,0.00625266]
[1641428699248,1.40060568,3519.5,3518.1,0.00625266]
[1641428699449,0.00284212,3519.7,3518.6,0.63953]
[1641428699649,31.5577124,3520.1,3518.6,0.63953]
[1641428699650,0.00341054,3519.8,3518.6,0.63953]
[1641428699851,0.00227369,3519.6,3518.7,0.00284212]
[1641428700048,0.00284212,3519.7,3518.7,0.00284212]
[1641428700250,0.00170527,3519.5,3518.7,0.00284212]
[1641428700449,0.00227369,3519.6,3519.1,0.63945]
[1641428700651,1.06448884,3519.8,3519.1,0.63945]
[1641428700855,1.06448884,3519.8,3518.9,1.98928]
[1641428700856,0.00170527,3519.5,3519.0,0.3]
[1641428701050,0.00284212,3519.7,3519.0,0.6]
[1641428701453,0.00227369,3519.6,3519.0,0.6]
[1641428701651,0.00227369,3519.6,3519.3,0.63939]
[1641428701899,0.00170527,3519.5,3519.3,0.63939]
[1641428702100,0.00170527,3519.5,3519.4,0.3]
[1641428702303,1.30195781,3520.2,3519.3,0.93939]
[1641428702503,0.00170527,3519.5,3519.4,0.6]
[1641428702706,0.00511581,3520.1,3519.4,0.3]
[1641428702909,0.00170527,3519.5,3518.8,0.06554899]
[1641428703106,0.00454739,3520.0,3519.0,0.63947]
[1641428703307,0.00511581,3520.1,3518.9,0.00170527]
[1641428703508,0.00397896,3519.9,3518.9,0.00170527]
[1641428703707,1.06629529,3519.4,3518.8,0.0022737]
[1641428704508,1.06629529,3519.4,3519.0,0.63947]
[1641428704709,3.93331852,3520.7,3519.0,0.63947]
[1641428704710,1.42956195,3520.7,3519.0,0.63947]
[1641428704909,0.00852635,3520.7,3519.0,0.63947]
[1641428705110,0.00795793,3520.6,3519.1,2.19256089]
[1641428705309,0.00795793,3520.6,3519.1,2.49256089]
[1641428705543,0.0073895,3520.5,3519.8,0.63933]
[1641428705745,0.0073895,3520.5,3519.7,1.27855]
[1641428705746,1.36858732,3520.2,3519.7,1.27855]
[1641428705945,1.36858732,3520.2,3519.8,0.3]
[1641428706149,0.00511581,3520.1,3519.8,0.3]
[1641428706546,0.00454739,3520.0,3519.8,0.3]
[1641428707048,0.00397896,3519.9,3519.5,1.57862]
[1641428707449,0.00341054,3519.8,3519.5,1.57862]
[1641428707852,0.00284212,3519.7,3519.6,67.52724127]
[1641428708053,5.6803,3521.0,3519.7,31.0]
[1641428708255,6.17,3521.2,3519.7,31.0]
[1641428708256,6.17,3521.2,3520.2,0.71011]
[1641428708453,6.17,3521.2,3520.3,2.43867243]
[1641428708454,0.00682108,3520.9,3520.3,2.43867243]
[1641428708657,0.00682108,3520.9,3520.2,1.6]
[1641428708855,0.00625265,3520.8,3520.5,0.7100163]
[1641428709057,0.00625265,3520.8,3520.6,0.6]
[1641428709295,0.00568423,3520.7,3520.6,1.31006]
[1641428709798,0.00568423,3520.7,3520.6,0.71006]
[1641428709996,0.00568423,3520.7,3520.4,2.35915]
[1641428710395,0.00511581,3520.6,3520.5,0.3]
[1641428710596,0.00511581,3520.6,3520.5,1.3]
[1641428710997,0.00511581,3520.6,3520.5,0.3]
[1641428711201,6.17,3521.2,3520.6,80.55]
[1641428711399,5.7905,3521.2,3520.7,2.69840213]
[1641428711600,6.10973561,3523.1,3520.9,0.67057658]
[1641428711899,0.00568424,3522.1,3521.0,2.43024936]
[1641428712099,0.00568424,3522.1,3521.0,2.77524936]
[1641428712297,0.00511582,3522.0,3521.0,4.10548742]
[1641428712498,0.00511582,3522.0,3521.5,0.3]
[1641428712701,0.00454739,3521.9,3521.3,0.7098859]
[1641428712903,0.00454739,3521.9,3521.5,1.34881]
[1641428713160,0.00397897,3521.8,3521.6,0.6]
[1641428713562,0.00341055,3521.7,3521.6,0.6]
[1641428714057,0.00341055,3521.7,3521.6,0.3]
[1641428714865,0.00341055,3521.7,3521.6,1.3]
[1641428716065,0.00341055,3521.7,3521.6,1.33472299]
[1641428716267,0.00341055,3521.7,3521.6,1.3]
[1641428717405,0.00341055,3521.7,3521.6,0.3]
[1641428717613,0.00341055,3521.7,3521.5,1.8]
[1641428717911,26.60284212,3521.6,3521.5,1.5]
[1641428718112,0.00284212,3521.6,3521.5,1.5]
[1641428718910,5.68214212,3521.6,3521.5,1.8]
[1641428720114,5.68214212,3521.6,3520.8,0.00170527]
[1641428720549,0.0022737,3521.5,3520.6,0.3]
[1641428720751,6.72890994,3521.4,3520.6,0.30284211]
[1641428720952,6.73061521,3521.4,3520.7,0.64139369]
[1641428721150,0.00113685,3521.3,3520.7,0.64139369]
[1641428721450,5.6793,3521.2,3520.8,0.00170527]
[1641428722051,5.6793,3521.2,3520.2,0.00511581]
[1641428722450,5.6793,3521.2,3520.6,0.49711]
[1641428722854,5.6793,3521.2,3520.7,0.00227369]
[1641428723154,5.6793,3521.2,3520.4,0.60397896]
[1641428723554,5.6793,3521.2,3520.8,1.5070752]
[1641428723756,5.6793,3521.2,3520.9,0.3]
[1641428723953,5.6793,3521.2,3520.9,0.30113684]
[1641428724402,5.6793,3521.2,3521.1,1.33012957]
[1641428724602,5.6793,3521.2,3521.1,1.63012957]
[1641428724802,5.6793,3521.2,3521.1,2.27512957]
[1641428725002,0.24,3522.2,3521.6,0.49694]
[1641428725403,1.31390003,3522.1,3521.5,0.99387]
[1641428725601,1.31390003,3522.1,3521.6,0.3]
[1641428725602,5.6789,3522.0,3521.6,0.3]
[1641428725802,5.68287897,3522.0,3521.6,0.3]
[1641428726002,0.00341054,3521.9,3521.6,0.3]
[1641428726202,5.6789,3521.8,3521.6,0.3]
[1641428726406,5.68174212,3521.8,3521.6,0.3]
[1641428726602,0.0022737,3521.7,3521.6,0.3]
[1641428726804,5.6811737,3521.7,3521.6,0.3]
[1641428731903,0.24,3522.2,3521.7,0.99379]
[1641428732110,0.24,3522.2,3521.8,3.20592016]
[1641428732308,5.20107369,3522.1,3521.8,5.50283016]
[1641428732505,2.0778205,3522.1,3521.9,1.0]
[1641428732713,0.09705789,3523.0,3522.0,57.35]
[1641428733010,0.00511581,3522.9,3522.5,0.99348]
[1641428733209,0.00511581,3522.9,3522.6,0.7096344]
[1641428733411,0.00454738,3522.8,3522.6,1.4192544]
[1641428733609,0.00454738,3522.8,3522.7,0.3]
[1641428733811,0.09705789,3523.0,3522.7,0.6]
[1641428734010,0.09705789,3523.0,3522.7,2.06308726]
[1641428734209,0.00511581,3522.9,3522.7,2.06308726]
[1641428734411,0.00511581,3522.9,3522.7,1.59348]
[1641428734615,0.00454738,3522.8,3522.7,1.59348]
[1641428735951,0.00454738,3522.8,3522.7,88.49348]
[1641428736150,0.50391971,3523.0,3522.7,4.12682678]
[1641428736550,6.17,3523.2,3522.8,1.03470747]
[1641428736751,6.17,3523.2,3522.9,0.70949]
[1641428736951,0.00170527,3523.1,3522.9,0.70949]
[1641428737152,0.00170527,3523.1,3523.0,1.4189772]
[1641428737352,6.17,3523.2,3523.0,1.4189772]
[1641428737552,0.49441,3523.2,3523.1,58.045]
[1641428737853,0.49441,3523.2,3523.1,0.645]
[1641428737854,0.4966837,3523.2,3523.1,0.645]
[1641428738053,0.0022737,3523.2,3523.1,1.645]
[1641428738254,0.0022737,3523.2,3523.1,0.645]
[1641428738452,0.0022737,3523.2,3523.1,1.645]
[1641428739499,0.0022737,3523.2,3522.9,1.9156142]
[1641428739705,0.0022737,3523.2,3522.7,1.5]
[1641428739899,0.00170527,3523.1,3522.7,1.5]
[1641428740301,0.00113685,3523.0,3522.7,1.5]
[1641428740701,1.48849595,3523.5,3522.7,1.5]
[1641428741106,0.00341054,3523.4,3522.7,1.5]
[1641428741505,0.00284212,3523.3,3522.7,1.5]
[1641428741907,1.48849595,3523.5,3522.7,1.5]
[1641428741908,1.44133807,3523.5,3522.7,1.5]
[1641428742106,1.44133807,3523.5,3522.8,0.00284212]
[1641428742711,1.07060713,3523.8,3522.8,0.00284212]
[1641428743164,0.5,3524.1,3522.8,0.00284212]
[1641428743165,0.00227369,3523.7,3522.8,0.00284212]
[1641428743666,0.00170527,3523.6,3522.8,0.00284212]
[1641428744067,0.00113685,3523.5,3522.8,0.00284212]
[1641428744473,1.31981902,3524.0,3522.8,0.00284212]
[1641428744670,5.6763,3523.9,3522.8,0.00284212]
[1641428744873,5.67971054,3523.9,3522.8,0.00284212]
[1641428745072,0.00284212,3523.8,3522.8,0.00284212]
[1641428745673,0.71262482,3523.8,3522.8,0.00284212]
[1641428747302,1.21752001,3523.5,3522.8,0.00284212]
[1641428749607,0.71262482,3523.8,3522.8,0.00284212]